[Event "41st Amateur D7"]
[Site "ChessGUI4"]
[Date "2013.07.04"]
[Round "3.3"]
[White "FireFly 2.6.0 64-bit"]
[Black "Waxman 2011"]
[Result "1/2-1/2"]
[BlackElo "2256"]
[ECO "B12"]
[EventDate "2013.??.??"]
[TimeControl "40/1500:40/1500:40/1500"]
[WhiteElo "2258"]

{ i5 Quad } 1.e4 { [%eval 0,1] [%emt 0:00:00] } 1...c6
{ [%eval 0,1] [%emt 0:00:00] } 2.d4 { [%eval 0,1] [%emt 0:00:00] } 2...d5
{ [%eval 0,1] [%emt 0:00:00] } 3.e5 { [%eval 0,1] [%emt 0:00:00] } 3...Bf5
{ [%eval 0,1] [%emt 0:00:00] } 4.Be3 { [%eval 0,1] [%emt 0:00:00] } 4...e6
{ [%eval 0,1] [%emt 0:00:00] } 5.Nd2 { [%eval 0,1] [%emt 0:00: 00] } 5...Qb6
{ [%eval 0,1] [%emt 0:00:00] } 6.Nb3 { [%eval 0,1] [%emt 0:00:00] } 6...Nd7
{ [%eval 0,1] [%emt 0:00:00] } 7.Be2 { [%eval 0,1] [%emt 0:00:00] } 7...a5
{ [%eval 0,1] [%emt 0:00:00] } 8.a4 { [%eval 0,1] [%emt 0:00:00] } 8...Ne7
{ [%eval 0,1] [%emt 0:00: 00] } 9.Nf3 { [%eval 98,11] [%emt 0:00:57] }
9...Bg4 { [%eval -25,12] [%emt 0:00:58] (Ng6) } 10.O-O
{ [%eval 76,11] [%emt 0:00:56] (O-O) } 10...Nf5
{ [%eval -24,12] [%emt 0:00:50] (Nf5) } 11.Bg5
{ [%eval 76,11] [%emt 0:00:55] (Bg5) } 11...Be7
{ [%eval -11, 13] [%emt 0:00:53] (h6) } 12.Bxe7
{ [%eval 76,12] [%emt 0:00:55] (Bxe7) } 12...Nxe7
{ [%eval -7,13] [%emt 0:00:58] (Nxe7) } 13.Bd3
{ [%eval 70,11] [%emt 0:00:54] (Ng5) } 13...Nf5
{ [%eval 3,13] [%emt 0:00:47] (Bh5) } 14.Bxf5
{ [%eval 58,13] [%emt 0: 00:53] (Bxf5) } 14...Bxf5
{ [%eval 6,13] [%emt 0:00:51] (Bxf5) } 15.Nh4
{ [%eval 52,12] [%emt 0:00:52] (Qe2) } 15...Be4
{ [%eval 6,13] [%emt 0:00:35] (Be4) } 16.f3
{ [%eval 54,12] [%emt 0:00:52] (f3) } 16...Bg6
{ [%eval 6,13] [%emt 0:00:41] (Bg6) } 17.Nxg6
{ [%eval 32,12] [%emt 0:00:51] (Nxg6) } 17...fxg6
{ [%eval 0,13] [%emt 0:00:41] (hxg6) } 18.Qd2
{ [%eval 47,11] [%emt 0:00:41] (Qd2) } 18...O-O
{ [%eval 10,13] [%emt 0:00:56] (O-O) } 19.Qf2
{ [%eval 42,11] [%emt 0:00:41] (Rfe1) } 19...Rf5
{ [%eval 35,12] [%emt 0:00:40] (Rfc8) } 20.Rfe1
{ [%eval 40,11] [%emt 0:00:41] (Kh1) } 20...Qb4
{ [%eval 44, 13] [%emt 0:00:37] (Qb4) } 21.Ra3
{ [%eval 37,10] [%emt 0:00:40] (Qd2) } 21...b6
{ [%eval 32,14] [%emt 0:01:12] (Qc4) } 22.Qf1
{ [%eval 35,11] [%emt 0:00:40] (Qe2) } 22...Rf4
{ [%eval 49,13] [%emt 0:00:38] (Raf8) } 23.c3
{ [%eval 38,11] [%emt 0:00: 39] (c3) } 23...Qe7
{ [%eval 25,14] [%emt 0:00:58] (Qe7) } 24.Qe2
{ [%eval 33,11] [%emt 0:00:39] (c4) } 24...c5
{ [%eval 40,12] [%emt 0:00:45] (Raf8) } 25.Qb5
{ [%eval 46,11] [%emt 0:00:39] (c4) } 25...c4
{ [%eval 32,13] [%emt 0:00:37] (c4) } 26.Nd2
{ [%eval 34,11] [%emt 0:00:38] (Qc6) } 26...Rc8
{ [%eval 36,13] [%emt 0:00:36] (g5) } 27.Rb1
{ [%eval 28,11] [%emt 0:00:38] (Nf1) } 27...Rf7
{ [%eval 39,13] [%emt 0:00:34] (Rff8) } 28.b4
{ [%eval 18,12] [%emt 0:00:37] (Nf1) } 28...Ra8
{ [%eval 23,12] [%emt 0: 00:49] (Qg5) } 29.Raa1
{ [%eval 34,12] [%emt 0:00:37] (Raa1) } 29...axb4
{ [%eval 8,14] [%emt 0:00:44] (axb4) } 30.Qxb4
{ [%eval 34,12] [%emt 0:00:36] (Qxb4) } 30...Qxb4
{ [%eval 7,14] [%emt 0:00:41] (Qxb4) } 31.Rxb4
{ [%eval 30,12] [%emt 0:00:36] (Rxb4) } 31...Ra6
{ [%eval 0,14] [%emt 0:00:32] (g5) } 32.Kf2
{ [%eval 24,12] [%emt 0: 00:35] (g3) } 32...Rf8
{ [%eval 2,16] [%emt 0:00:37] (Rf8) } 33.Nf1
{ [%eval 23,12] [%emt 0:00:35] (Nf1) } 33...Rfa8
{ [%eval 5,16] [%emt 0:00:34] (g5) } 34.Ne3
{ [%eval 26,12] [%emt 0:00:34] (Ne3) } 34...g5
{ [%eval 5,16] [%emt 0:01:26] (g5) } 35.g3
{ [%eval 14,12] [%emt 0:00:33] (Nc2) } 35...Ra5
{ [%eval 5,15] [%emt 0:00:27] (Kf7) } 36.Nc2
{ [%eval 12,12] [%emt 0:00:33] (Nc2) } 36...h6
{ [%eval 4,16] [%emt 0:00:39] (Kf7) } 37.g4
{ [%eval 26,12] [%emt 0:00:32] (h3) } 37...g6
{ [%eval 17,14] [%emt 0:00:36] (Kf7) } 38.Kg3
{ [%eval 22,13] [%emt 0:00:31] (Kg3) } 38...Kg7
{ [%eval 20,15] [%emt 0: 00:44] (Kg7) } 39.f4
{ [%eval 20,12] [%emt 0:00:30] (Kg2) } 39...gxf4+
{ [%eval 38,14] [%emt 0:00:10] (gxf4) } 40.Kxf4
{ [%eval 26,11] [%emt 0:00:23] (Kxf4) } 40...Rf8+
{ [%eval 30,14] [%emt 0:00:15] (g5) } 41.Ke3
{ [%eval 19,11] [%emt 0:00:35] (Kg3) } 41...Raa8
{ [%eval 26,14] [%emt 0:00:38] (Raa8) } 42.Rb5
{ [%eval 25,12] [%emt 0:00: 35] (Rb5) } 42...Rf7
{ [%eval 64,15] [%emt 0:00:39] (Rf7) } 43.a5
{ [%eval -2,12] [%emt 0:00:35] (a5) } 43...bxa5
{ [%eval 48,15] [%emt 0:00:29] (bxa5) } 44.Raxa5
{ [%eval 0,12] [%emt 0:00:35] (Rbxa5) } 44...Raf8
{ [%eval 63,15] [%emt 0:00:42] (Raf8) } 45.Ra6
{ [%eval -2,12] [%emt 0:00:35] (Ne1) } 45...Rf1
{ [%eval 30,14] [%emt 0:00:38] (Rf3) } 46.Rb7
{ [%eval 0,12] [%emt 0:00:35] (Rb7) } 46...R8f3+
{ [%eval 58,16] [%emt 0:00:34] (R8f3) } 47.Kd2
{ [%eval 0,12] [%emt 0:00:35] (Ke2) } 47...R3f2+
{ [%eval 73, 17] [%emt 0:00:27] (R3f2) } 48.Ke3
{ [%eval 0,12] [%emt 0:00:00] (Ke3) } 48...Rxc2
{ [%eval 50,16] [%emt 0:00:20] } 49.Rxd7+
{ [%eval -32,14] [%emt 0:00:36] (Rxd7) } 49...Rf7
{ [%eval 55,18] [%emt 0:00:39] (Rf7) } 50.Rxf7+
{ [%eval -32,15] [%emt 0:00: 36] (Rxf7) } 50...Kxf7
{ [%eval 68,18] [%emt 0:00:07] (Kxf7) } 51.Ra7+
{ [%eval -32,15] [%emt 0:00:36] (Ra7) } 51...Ke8
{ [%eval 48,20] [%emt 0:00:22] (Ke8) } 52.Ra8+
{ [%eval -32,15] [%emt 0:00:36] (Ra8) } 52...Kd7
{ [%eval 54,20] [%emt 0:00:33] (Kd7) } 53.Ra3
{ [%eval -32,15] [%emt 0:00:36] (Ra7) } 53...Rxh2
{ [%eval 68,20] [%emt 0:00: 25] (g5) } 54.Ra7+
{ [%eval -59,15] [%emt 0:00:36] (Ra7) } 54...Kd8
{ [%eval 68,20] [%emt 0:00:24] (Kc8) } 55.Ra6
{ [%eval -30,15] [%emt 0:00:36] (Ra6) } 55...Rc2
{ [%eval 27,19] [%emt 0:00:41] (Ke7) } 56.Rxe6
{ [%eval -90,15] [%emt 0:00:36] (Rxe6) } 56...Rxc3+
{ [%eval 19,18] [%emt 0:00:19] (Rxc3) } 57.Ke2
{ [%eval -49,15] [%emt 0:00:36] (Ke2) } 57...Rd3
{ [%eval 41,18] [%emt 0:00:33] (Rd3) } 58.Rd6+
{ [%eval -48,16] [%emt 0:00:36] (Rd6) } 58...Ke7
{ [%eval 56,19] [%emt 0:00:31] (Ke7) } 59.Rxd5
{ [%eval -35,16] [%emt 0:00:36] (Rxd5) } 59...h5
{ [%eval 31,18] [%emt 0:00: 39] (h5) } 60.gxh5
{ [%eval -40,16] [%emt 0:00:36] (g5) } 60...gxh5
{ [%eval 106,17] [%emt 0:00:12] (gxh5) } 61.Rd6
{ [%eval -40,14] [%emt 0:00:36] (Kf2) } 61...h4
{ [%eval 123,18] [%emt 0:00:39] (h4) } 62.d5
{ [%eval 0,14] [%emt 0:00:36] (Rc6) } 62...h3
{ [%eval 83,18] [%emt 0:01:36] (h3) } 63.Rh6
{ [%eval 0,14] [%emt 0:00:36] (Rc6) } 63...Rxd5
{ [%eval 132,18] [%emt 0:00:17] (Ke8) } 64.Rxh3
{ [%eval 0,14] [%emt 0:00:36] (Rxh3) } 64...Rxe5+
{ [%eval 163,16] [%emt 0:00:45] (Kd7) } 1/2-1/2

[Event "41st Amateur D7"]
[Site "ChessGUI4"]
[Date "2013.07.04"]
[Round "3.4"]
[White "ChessKiss 1.7 64-bit"]
[Black "ProChess 1.02AD"]
[Result "0-1"]
[BlackElo "2244"]
[ECO "C67"]
[EventDate "2013.??.??"]
[TimeControl "40/1500:40/1500:40/1500"]
[WhiteElo "2214"]

{ i5 Quad } 1.e4 { [%eval 0,1] [%emt 0:00:00] } 1...e5
{ [%eval 0,1] [%emt 0:00:00] } 2.Nf3 { [%eval 0,1] [%emt 0:00:00] } 2...Nc6
{ [%eval 0,1] [%emt 0:00:00] } 3.Bb5 { [%eval 0,1] [%emt 0:00:00] } 3...Nf6
{ [%eval 0,1] [%emt 0:00:00] } 4.O-O { [%eval 0, 1] [%emt 0:00:00] } 4...Nxe4
{ [%eval 0,1] [%emt 0:00:00] } 5.d4 { [%eval 0,1] [%emt 0:00:00] } 5...Nd6
{ [%eval 0,1] [%emt 0:00:00] } 6.Bxc6 { [%eval 0,1] [%emt 0:00:00] } 6...dxc6
{ [%eval 0,1] [%emt 0:00:00] } 7.dxe5 { [%eval 0,1] [%emt 0:00:00] } 7...Nf5
{ [%eval 0,1] [%emt 0:00:00] } 8.Qxd8+ { [%eval 0,1] [%emt 0:00:00] }
8...Kxd8 { [%eval 0,1] [%emt 0:00:00] } 9.Nc3
{ [%eval 111,13] [%emt 0:00:43] } 9...Bb4
{ [%eval -30,12] [%emt 0:01:06] (Be6) } 10.Ne4
{ [%eval 98,12] [%emt 0:00:41] (Ne4) } 10...Be6
{ [%eval -32,12] [%emt 0:00:49] (Be6) } 11.g4
{ [%eval 111,13] [%emt 0:00:40] (g4) } 11...Ne7
{ [%eval -14,13] [%emt 0:00:50] (Bd5) } 12.c3
{ [%eval 135,13] [%emt 0:00:36] (Nfg5) } 12...Ba5
{ [%eval -11,13] [%emt 0:01:03] (Bd5) } 13.Nfg5
{ [%eval 143,13] [%emt 0:00:38] (Nc5) } 13...Bd5
{ [%eval -7,13] [%emt 0:01:13] (Bd5) } 14.e6
{ [%eval 123,13] [%emt 0:00:38] (e6) } 14...Bxe6
{ [%eval -15,13] [%emt 0:00:50] (Bxe6) } 15.Nxe6+
{ [%eval 134,14] [%emt 0:00:32] (Nxe6) } 15...fxe6
{ [%eval -15,14] [%emt 0:00:49] (fxe6) } 16.a4
{ [%eval 134,13] [%emt 0:00:31] (a4) } 16...a6
{ [%eval -20,13] [%emt 0:00:45] (a6) } 17.Nc5
{ [%eval 116,14] [%emt 0:00:32] (Ng5) } 17...Ke8
{ [%eval -7,13] [%emt 0:00:44] (Kc8) } 18.Bg5
{ [%eval 117,12] [%emt 0:00:27] (Nxe6) } 18...Nd5
{ [%eval 2,13] [%emt 0:01:26] (Kf7) } 19.Nxb7
{ [%eval 82,12] [%emt 0:00:32] (Rfe1) } 19...Bb6
{ [%eval 10,14] [%emt 0:00:53] (Bb6) } 20.a5
{ [%eval 35,14] [%emt 0:00:30] (c4) } 20...Ba7
{ [%eval 63,14] [%emt 0:00:39] (Ba7) } 21.c4
{ [%eval 18,12] [%emt 0:00:24] (c4) } 21...Nf6
{ [%eval 70,13] [%emt 0:00:32] (Rb8) } 22.Rae1
{ [%eval -28,12] [%emt 0:00:30] (b4) } 22...Rb8
{ [%eval 126,14] [%emt 0:00:24] (Rb8) } 23.Bxf6
{ [%eval -91,14] [%emt 0:00:36] (Bxf6) } 23...gxf6
{ [%eval 154,16] [%emt 0: 00:26] (gxf6) } 24.Rxe6+
{ [%eval -64,15] [%emt 0:00:28] (Rxe6) } 24...Kd7
{ [%eval 150,16] [%emt 0:00:52] (Kd7) } 25.Rxf6
{ [%eval -71,15] [%emt 0:00:32] (Rxf6) } 25...Rxb7
{ [%eval 154,15] [%emt 0:01:03] (Rxb7) } 26.Rd1+
{ [%eval -112,14] [%emt 0: 00:26] (Rd1) } 26...Kc8
{ [%eval 156,15] [%emt 0:01:01] (Kc8) } 27.Rxc6
{ [%eval -85, 14] [%emt 0:00:25] (Rd2) } 27...Rxb2
{ [%eval 159,13] [%emt 0:00:29] (Rxb2) } 28.Rxa6
{ [%eval -94,14] [%emt 0:00:24] (Rxa6) } 28...Bxf2+
{ [%eval 171,13] [%emt 0:00:14] (Bxf2) } 29.Kh1
{ [%eval -85,14] [%emt 0:00:24] (Kh1) } 29...Kb8
{ [%eval 173,12] [%emt 0:00:16] (Re8) } 30.Rf6
{ [%eval -58,12] [%emt 0:00:23] (h3) } 30...Rc2
{ [%eval 207,12] [%emt 0:00:25] (Re8) } 31.h3
{ [%eval -68,11] [%emt 0:00:22] (Rb1) } 31...Bc5
{ [%eval 230,12] [%emt 0:00:12] (Bc5) } 32.Rf7
{ [%eval -105,11] [%emt 0:00:23] (Rf7) } 32...Rxc4
{ [%eval 243,11] [%emt 0:00:19] (Rxc4) } 33.Rdd7
{ [%eval -136,11] [%emt 0:00:21] (Kg2) } 33...Rc2
{ [%eval 506,13] [%emt 0:00:22] (Ra4) } 34.Rxc7
{ [%eval -93,11] [%emt 0:00:20] (Rd1) } 34...Re8
{ [%eval 840,16] [%emt 0:00: 21] (Rc1) } 35.Rfe7
{ [%eval -977,13] [%emt 0:00:20] (Rfe7) } 35...Rxe7
{ [%eval 847, 15] [%emt 0:00:25] (Rxe7) } 36.Rxe7
{ [%eval -1091,13] [%emt 0:00:19] (Rxe7) } 36...Bxe7
{ [%eval 885,14] [%emt 0:01:22] (Bxe7) } 37.Kg1
{ [%eval -1107,12] [%emt 0: 00:19] (Kg1) } 37...Kb7
{ [%eval 886,13] [%emt 0:02:28] (Bc5) } 38.Kf1
{ [%eval -1111, 11] [%emt 0:00:18] (Kf1) } 0-1

[Event "41st Amateur D7"]
[Site "ChessGUI4"]
[Date "2013.07.04"]
[Round "3.5"]
[White "Shallow 1.0 64-bit"]
[Black "MadChess 1.2"]
[Result "0-1"]
[BlackElo "2200"]
[ECO "A17"]
[EventDate "2013.??.??"]
[TimeControl "40/1500:40/1500:40/1500"]
[WhiteElo "2200"]

{ i5 Quad } 1.c4 { [%eval 0,1] [%emt 0:00:00] } 1...Nf6
{ [%eval 0,1] [%emt 0:00:00] } 2.Nc3 { [%eval 0,1] [%emt 0:00:00] } 2...e6
{ [%eval 0,1] [%emt 0:00:00] } 3.Nf3 { [%eval 0,1] [%emt 0:00:00] } 3...Bb4
{ [%eval 0,1] [%emt 0:00:00] } 4.g3 { [%eval 0,1] [%emt 0:00:00] } 4...O-O
{ [%eval 0,1] [%emt 0:00:00] } 5.Bg2 { [%eval 0,1] [%emt 0: 00:00] } 5...d5
{ [%eval 0,1] [%emt 0:00:00] } 6.a3 { [%eval 0,1] [%emt 0:00:00] } 6...Bxc3
{ [%eval 0,1] [%emt 0:00:00] } 7.dxc3 { [%eval 0,1] [%emt 0:00:00] } 7...Nbd7
{ [%eval 0,1] [%emt 0:00:00] } 8.cxd5 { [%eval 0,1] [%emt 0:00:00] } 8...exd5
{ [%eval 0,1] [%emt 0:00:00] } 9.Be3 { [%eval 2,12] [%emt 0:00:42] } 9...Nb6
{ [%eval 25,11] [%emt 0:00:43] (Qe7) } 10.Bc5
{ [%eval 2,13] [%emt 0:00:42] (b3) } 10...Re8
{ [%eval 44,13] [%emt 0:01:15] (Re8) } 11.Bxb6
{ [%eval 0,13] [%emt 0:00:42] (O-O) } 11...axb6
{ [%eval 66,11] [%emt 0:00:29] (axb6) } 12.e3
{ [%eval -2,13] [%emt 0:00:42] (O-O) } 12...Qd6
{ [%eval 63,10] [%emt 0:00:34] (Qd6) } 13.Qd3
{ [%eval 0,13] [%emt 0: 00:42] (O-O) } 13...Bd7
{ [%eval 54,10] [%emt 0:01:05] (Bg4) } 14.O-O
{ [%eval -1,13] [%emt 0:00:42] (O-O) } 14...g6
{ [%eval 55,9] [%emt 0:00:18] (Rad8) } 15.Qd4
{ [%eval 12,12] [%emt 0:00:42] (Rad1) } 15...Bb5
{ [%eval 76,11] [%emt 0:00:48] (Rad8) } 16.Rfe1
{ [%eval 13,13] [%emt 0:00:42] (Rfd1) } 16...Ra4
{ [%eval 63,11] [%emt 0:01:04] (Ne4) } 17.Qd1
{ [%eval 17,13] [%emt 0:00:42] (Qd2) } 17...Bd7
{ [%eval 50,10] [%emt 0: 00:43] (Bd7) } 18.Rb1
{ [%eval 14,13] [%emt 0:00:42] (Nd2) } 18...b5
{ [%eval 77,9] [%emt 0:00:43] (b5) } 19.Rc1
{ [%eval 11,13] [%emt 0:00:42] (Qb3) } 19...c5
{ [%eval 66,8] [%emt 0:00:17] (c6) } 20.Qe2
{ [%eval 13,12] [%emt 0:00:42] (Nd2) } 20...b6
{ [%eval 63,8] [%emt 0:00:21] (Ra5) } 21.Ng5
{ [%eval 8,13] [%emt 0:00:42] (Nd2) } 21...h6
{ [%eval 64,9] [%emt 0:00:26] (Bc6) } 22.Nh3
{ [%eval 16,13] [%emt 0:00:42] (Nh3) } 22...Bc6
{ [%eval 49,10] [%emt 0:00:49] (Bc6) } 23.Nf4
{ [%eval 14,13] [%emt 0: 00:42] (f3) } 23...g5
{ [%eval 43,10] [%emt 0:00:42] (Raa8) } 24.Nh5
{ [%eval 22,14] [%emt 0:00:42] (Nh5) } 24...Ne4
{ [%eval 43,11] [%emt 0:00:40] (Ne4) } 25.f3
{ [%eval 20,14] [%emt 0:00:42] (f3) } 25...Nf6
{ [%eval 40,12] [%emt 0:00:23] (Nf6) } 26.Nxf6+
{ [%eval 20,13] [%emt 0:00:42] (Nxf6) } 26...Qxf6
{ [%eval 37,11] [%emt 0:00:28] (Qxf6) } 27.Qf2
{ [%eval 18,13] [%emt 0:00:42] (f4) } 27...Qe6
{ [%eval 46,10] [%emt 0:00:24] (Raa8) } 28.f4
{ [%eval 22,13] [%emt 0:00:42] (Bf1) } 28...f5
{ [%eval 40,10] [%emt 0: 00:40] (Ra7) } 29.Rcd1
{ [%eval 22,13] [%emt 0:00:42] (Rcd1) } 29...Ra7
{ [%eval 41,10] [%emt 0:00:29] (Ra7) } 30.Qf3
{ [%eval 23,13] [%emt 0:00:42] (Qd2) } 30...Qf7
{ [%eval 38,10] [%emt 0:00:42] (Qg6) } 31.g4
{ [%eval 36,13] [%emt 0:00:42] (Qf2) } 31...fxg4
{ [%eval -39,10] [%emt 0:00:31] (fxg4) } 32.Qxg4
{ [%eval 82,13] [%emt 0:00: 42] (Qxg4) } 32...Qe6
{ [%eval -60,12] [%emt 0:00:41] (Qe6) } 33.Qxe6+
{ [%eval 83,14] [%emt 0:00:42] (Qxe6) } 33...Rxe6
{ [%eval -54,14] [%emt 0:00:48] (Rxe6) } 34.Rxd5
{ [%eval 83,14] [%emt 0:00:42] (fxg5) } 34...gxf4
{ [%eval -40,14] [%emt 0:00:32] (gxf4) } 35.Rd8+
{ [%eval 85,14] [%emt 0:00:42] (Rd8) } 35...Kh7
{ [%eval -73,15] [%emt 0:00: 47] (Kf7) } 36.Bxc6
{ [%eval 88,13] [%emt 0:00:42] (Bxc6) } 36...Rg6+
{ [%eval -84,15] [%emt 0:00:30] (Rg7) } 37.Kh1
{ [%eval 91,14] [%emt 0:00:42] (Kh1) } 37...Rxc6
{ [%eval -105,16] [%emt 0:01:44] (Rxc6) } 38.exf4
{ [%eval 91,13] [%emt 0:00:42] (exf4) } 38...Rf7
{ [%eval -105,15] [%emt 0:00:54] (b4) } 39.Rf1
{ [%eval 91,13] [%emt 0:00:42] (Re4) } 39...Rcf6
{ [%eval -90,16] [%emt 0:02:05] (Rcf6) } 40.Rb8
{ [%eval 93, 13] [%emt 0:00:42] (Rb8) } 40...Kg6
{ [%eval -118,15] [%emt 0:01:02] (Kg6) } 41.f5+
{ [%eval 91,13] [%emt 0:00:37] (b4) } 41...Kh5
{ [%eval -88,14] [%emt 0:00:44] (Kh5) } 42.Rf3
{ [%eval 88,13] [%emt 0:00:37] (Kg2) } 42...Kh4
{ [%eval -73,16] [%emt 0:01:32] (Kh4) } 43.Rf4+
{ [%eval 87,13] [%emt 0:00:37] (Kg2) } 43...Kg5
{ [%eval -73,18] [%emt 0:04:04] (Kg5) } 44.Rf2
{ [%eval 85,14] [%emt 0:00:37] (Rf2) } 44...Kh4
{ [%eval -73, 16] [%emt 0:02:20] (Kh4) } 45.Rf4+
{ [%eval 86,13] [%emt 0:00:37] (b3) } 45...Kh5
{ [%eval 0,100] [%emt 0:00:01] (Kg5) } 46.Kg2
{ [%eval 98,13] [%emt 0:00:37] } 46...Rxf5
{ [%eval -105,16] [%emt 0:01:10] (Rg7) } 47.Rxf5+
{ [%eval 117,15] [%emt 0:00:37] (Rxf5) } 47...Rxf5
{ [%eval -119,16] [%emt 0:00:38] (Rxf5) } 48.Rxb6
{ [%eval 120,16] [%emt 0:00:37] (Rxb6) } 48...c4
{ [%eval -151,15] [%emt 0:00:21] (c4) } 49.Kg3
{ [%eval 136,16] [%emt 0:00:37] (Kg3) } 49...Kg5
{ [%eval -164,16] [%emt 0:00:43] (Rg5) } 50.h4+
{ [%eval 145,16] [%emt 0:00:37] (h4) } 50...Kh5
{ [%eval -164,16] [%emt 0:00: 00] (Kh5) } 51.Rd6
{ [%eval 157,17] [%emt 0:00:37] } 51...Re5
{ [%eval -156,16] [%emt 0:01:08] (Re5) } 52.Kf3
{ [%eval 159,17] [%emt 0:00:37] (Rc6) } 52...Rc5
{ [%eval -154, 15] [%emt 0:00:31] (Rf5) } 53.Kf4
{ [%eval 203,16] [%emt 0:00:37] (Kf4) } 53...Rc7
{ [%eval -179,16] [%emt 0:00:55] (Rc7) } 54.Rd5+
{ [%eval 200,16] [%emt 0:00:37] (Rd5) } 54...Kxh4
{ [%eval -212,15] [%emt 0:00:21] (Kxh4) } 55.Rxb5
{ [%eval 191,16] [%emt 0:00:37] (Rxb5) } 55...h5
{ [%eval -192,15] [%emt 0:00:41] (h5) } 56.Ke5
{ [%eval 184,15] [%emt 0:00:37] (a4) } 56...Kg4
{ [%eval -97,13] [%emt 0:00:18] (Rc8) } 57.Kd6
{ [%eval 107,16] [%emt 0:00:37] (Rb8) } 57...Rc8
{ [%eval -50,16] [%emt 0:01: 19] (Rc8) } 58.Kd7
{ [%eval 105,15] [%emt 0:00:37] (Rb4) } 58...Rf8
{ [%eval -40,15] [%emt 0:00:38] (Rf8) } 59.Rc5
{ [%eval 94,15] [%emt 0:00:37] (Ke7) } 59...Rf4
{ [%eval 12,15] [%emt 0:00:53] (Rf4) } 60.Rc6
{ [%eval 84,15] [%emt 0:00:37] (a4) } 60...h4
{ [%eval 0,14] [%emt 0:00:21] (h4) } 61.Rg6+
{ [%eval 84,14] [%emt 0:00:37] (Rg6) } 61...Kf3
{ [%eval 24,13] [%emt 0:00:15] (Kf5) } 62.Rh6
{ [%eval 66,14] [%emt 0: 00:37] (Rh6) } 62...Kg3
{ [%eval 62,13] [%emt 0:00:20] (Kg3) } 63.Rg6+
{ [%eval -249, 15] [%emt 0:00:59] (Rg6) } 63...Rg4
{ [%eval 76,15] [%emt 0:00:23] (Rg4) } 64.Re6
{ [%eval -268,16] [%emt 0:00:36] (Re6) } 64...h3
{ [%eval 53,14] [%emt 0:00:13] (h3) } 65.Re3+
{ [%eval -273,15] [%emt 0:00:36] (Re3) } 65...Kh4
{ [%eval 140,13] [%emt 0:00: 10] (Kg2) } 66.Re2
{ [%eval -266,15] [%emt 0:00:36] (Re2) } 66...Rg2
{ [%eval 165,13] [%emt 0:00:15] (Kg3) } 67.Re8
{ [%eval -251,13] [%emt 0:00:59] (Re4) } 67...Rxb2
{ [%eval 190,13] [%emt 0:00:23] (Rg7) } 68.Rh8+
{ [%eval -101,13] [%emt 0:00:35] (Rh8) } 68...Kg3
{ [%eval 211,13] [%emt 0:00:15] (Kg3) } 69.Rg8+
{ [%eval -261,16] [%emt 0:00:35] (Rg8) } 69...Kf2
{ [%eval 197,14] [%emt 0:00:26] (Kf2) } 70.Rh8
{ [%eval -262,16] [%emt 0:00:35] (Rf8) } 70...Rd2+
{ [%eval 249,15] [%emt 0:00:22] (Kg2) } 71.Kc6
{ [%eval -246,16] [%emt 0:00:35] (Kc6) } 71...Rd3
{ [%eval 267,14] [%emt 0: 00:09] (Kg2) } 72.Kb5
{ [%eval -169,13] [%emt 0:00:35] (a4) } 72...Rxc3
{ [%eval 283, 14] [%emt 0:00:20] (Rxc3) } 73.Kb4
{ [%eval -180,13] [%emt 0:00:35] (Kb4) } 73...Rb3+
{ [%eval 295,14] [%emt 0:00:15] (Rb3) } 74.Kxc4
{ [%eval -188,13] [%emt 0:00:35] (Kxc4) } 74...Rxa3
{ [%eval 320,15] [%emt 0:00:26] (Rxa3) } 0-1